Workbook

Sheet Enable Macros
O10: 1. Click on the options Button as soon as you open the workbook
O13: 2. If the Options button is not there close the spreadsheet and re-open
C16: 3. The following POP Up will appear
M29: 4. Click the "Enable this content" under the Macro's section
M42: 5. Click the "OK" button

Sheet Summary
S1: None | T1: None | U1: None | V1: None | W1: None | X1: Business
S2: None | T2: None | U2: None | V2: None | W2: None
A3: Business Plan
C6: 00:00:00
D7: 04/10/2012 | J7: Date: | K7: 2021-10-08
A11: Partnership College/ Institution
A13: Region
A15: Programme
I17: Year 1 | K17: Year 2 | M17: Year 3
I18: £ | K18: £ | M18: £
C20: Income
C23: Fee income | I23: ='Int Coll_Programme Costing'!J22 -> 0 | K23: ='Int Coll_Programme Costing'!N22 -> 0 | M23: ='Int Coll_Programme Costing'!R22 -> 0
C24: Total Fee Income | I24: =+I23 -> 0 | K24: =+K23 -> 0 | M24: =+M23 -> 0
C26: Direct Cost
C28: Approval Event | I28: =+'Int Coll_Programme Costing'!J30 -> 24064.18611 | K28: 0 | M28: 0
C29: Staff cost (Link tutor & Prog Leader) | I29: =+'Int Coll_Programme Costing'!J41 -> 15833.35242 | K29: =+'Int Coll_Programme Costing'!N41 -> 16150.01947 | M29: =+'Int Coll_Programme Costing'!R41 -> 16473.01985
C30: Assessments (Setting/Approving Exam paper) | I30: =+'Int Coll_Programme Costing'!J48 -> 0 | K30: =+'Int Coll_Programme Costing'!N48 -> 0 | M30: =+'Int Coll_Programme Costing'!R48 -> 0
C31: Marking & Moderation | I31: =+'Int Coll_Programme Costing'!J89 -> 0 | K31: =+'Int Coll_Programme Costing'!N89 -> 0 | M31: =+'Int Coll_Programme Costing'!R89 -> 0
C32: Other Quality Assurance Costs | I32: =+'Int Coll_Programme Costing'!J96 -> 3181.951918 | K32: =+'Int Coll_Programme Costing'!N96 -> 3181.951918 | M32: =+'Int Coll_Programme Costing'!R96 -> 3181.951918
C33: Staff Travel & Subsistence | I33: =+'Int Coll_Programme Costing'!J104 -> 0 | K33: =+'Int Coll_Programme Costing'!N104 -> 0 | M33: =+'Int Coll_Programme Costing'!R104 -> 0
I34: =SUM(I28:I33) -> 43079.49045 | K34: =SUM(K28:K33) -> 19331.97138 | M34: =SUM(M28:M33) -> 19654.97177
C35: Indirect Cost
C37: Estate | I37: =+'Int Coll_Programme Costing'!J114 -> 1928.25 | K37: =+'Int Coll_Programme Costing'!N114 -> 1966.815 | M37: =+'Int Coll_Programme Costing'!R114 -> 2006.1513
C38: Indirect TRAC Costs | I38: =+'Int Coll_Programme Costing'!J120 -> 8206.5 | K38: =+'Int Coll_Programme Costing'!N120 -> 8370.63 | M38: =+'Int Coll_Programme Costing'!R120 -> 8538.0426
I39: =SUM(I37:I38) -> 10134.75 | K39: =SUM(K37:K38) -> 10337.445 | M39: =SUM(M37:M38) -> 10544.1939
C41: Profit/Loss | I41: =+I24-(I34+I39) -> -53214.24045 | K41: =+K24-(K34+K39) -> -29669.41638 | M41: =+M24-(M34+M39) -> -30199.16567

Sheet Int Coll_Programme Costing
AB1: SG2 - SP5 | AG1: AC4 - SP45 | AH1: AC3 - mid point | AI1: SG7 - mid point | AJ1: Approving Exam and Feedback when set by others | AK1: Setting Exam Paper | AR1: Yes
B2: International Collaborations: Programme Costing
I5: YEAR 1 (1st Year of Operation) | M5: YEAR 2 (2nd Year of Operation) | Q5: YEAR 3(3rd Year of Operation)
B7: Student Numbers, Fee & Income | I7: Student Nos | J7: £ | M7: Student Nos | N7: £ | Q7: Student Nos | R7: £
D9: Student Nos: Year 1
D10: Student Nos: Year 2
D11: Student Nos: Year 3
D12: Student Nos: Year 2 (top-up)
D13: Student Nos: Year 3 (top-up)
I16: Fee per Student
D18: Fee per student: Year 1-3
D19: Fee per student: Year 2 (top-up)
D20: Fee per student: Year 3 (top up)
D22: Total Fee Income | J22: =(SUM(I9:I11)*I18)+(I12*I19)+(I13*I20) -> 0 | N22: =(SUM(M9:M11)*M18)+(M12*M19)+(M13*M20) -> 0 | R22: =(SUM(Q9:Q11)*Q18)+(Q12*Q19)+(Q13*Q20) -> 0
B27: Approval Events Costs:- | D27: Is an onsite approval event required? | J27: =IF(AR1="yes",'Activity costing'!$C25,'Activity costing'!$C18) -> 24164.18611
D29: partner is contributing to the cost of the approval event | J29: 100
J30: =+J27-J29 -> 24064.18611
B34: Staff Costs:- | E34: Grade | I34: FTE | J34: £ | M34: FTE | N34: £ | Q34: FTE | R34: £
D35: Principal Lecturer | F35: =VLOOKUP(AG1,'Spine points for template'!$A$7:$B$137,2,FALSE) -> 77295.04834 | I35: 0.05 | J35: =F35*I35 -> 3864.752417 | M35: 0.05 | N35: =($F35*M35)*(1+'Activity costing'!$B$44) -> 3942.047465 | Q35: 0.05 | R35: =($F35*Q35)*(1+'Activity costing'!$B$44)*(1+'Activity costing'!$C$44) -> 4020.888414 | U35: 2% Annual Pay Award
D37: Senior Lecturer | F37: =VLOOKUP(AH1,'Spine points for template'!$A$7:$B$137,2,FALSE) -> 66473 | I37: 0.1 | J37: =F37*I37 -> 6647.3 | M37: 0.1 | N37: =($F37*M37)*(1+'Activity costing'!$B$44) -> 6780.246 | Q37: 0.1 | R37: =($F37*Q37)*(1+'Activity costing'!$B$44)*(1+'Activity costing'!$C$44) -> 6915.85092 | U37: 2% Annual Pay Award
D39: Administration | F39: =VLOOKUP(AI1,'Spine points for template'!$A$7:$B$137,2,FALSE) -> 53213 | I39: 0.1 | J39: =F39*I39 -> 5321.3 | M39: 0.1 | N39: =($F39*M39)*(1+'Activity costing'!$B$44) -> 5427.726 | Q39: 0.1 | R39: =($F39*Q39)*(1+'Activity costing'!$B$44)*(1+'Activity costing'!$C$44) -> 5536.28052 | U39: 2% Annual Pay Award
J41: =SUM(J35:J40) -> 15833.35242 | N41: =SUM(N35:N40) -> 16150.01947 | R41: =SUM(R35:R40) -> 16473.01985
B44: Assessments Costs:- | I44: Nos. | J44: £ | M44: Nos. | N44: £ | Q44: Nos. | R44: £
A45: ` | F45: =VLOOKUP(AK1,'Activity costing'!$A$74:$C$77,3,FALSE) -> 570 | J45: =IF(I45>0,($F45*I45),0) -> 0 | N45: =IF(M45>0,($F45*M45),0) -> 0 | R45: =IF(Q45>0,($F45*Q45),0) -> 0
F46: =VLOOKUP(AJ1,'Activity costing'!$A$74:$C$77,3,FALSE) -> 10 | J46: =IF(I46>0,($F46*I46),0) -> 0 | N46: =IF(M46>0,($F46*M46),0) -> 0 | R46: =IF(Q46>0,($F46*Q46),0) -> 0
J48: =SUM(J45:J47) -> 0 | N48: =SUM(N45:N47) -> 0 | R48: =SUM(R45:R47) -> 0
B52: Marking & Moderation Costs:- | F52: Cost Per Assess -ment | I52: Number of Assess -ments | J52: £ | M52: Number of Assess -ments | N52: £ | Q52: Number of Assess -ments | R52: £
D53: Examination Marking | F53: =+'Activity costing'!$C$5 -> 50 | J53: =SUM(J54:J58) -> 0 | N53: =SUM(N54:N58) -> 0 | R53: =SUM(R54:R58) -> 0
D54: : Year 1 | F54: =+'Activity costing'!$C$5 -> 50 | J54: =F54*I54*I9 -> 0 | N54: =F54*M54*M9 -> 0 | R54: =F54*Q54*Q9 -> 0
D55: : Year 2 | F55: =+'Activity costing'!$C$5 -> 50 | J55: =F55*I55*I10 -> 0 | N55: =F55*M55*M10 -> 0 | R55: =F55*Q55*Q10 -> 0
D56: : Year 3 | F56: =+'Activity costing'!$C$5 -> 50 | J56: =F56*I56*I11 -> 0 | N56: =F56*M56*M11 -> 0 | R56: =F56*Q56*Q11 -> 0
D57: : Year 2 (top-up) | F57: =+'Activity costing'!$C$5 -> 50 | J57: =F57*I57*I12 -> 0 | N57: =F57*M57*M12 -> 0 | R57: =F57*Q57*Q12 -> 0
D58: : Year 3 (top-up) | F58: =+'Activity costing'!$C$5 -> 50 | J58: =F58*I58*I13 -> 0 | N58: =F58*M58*M13 -> 0 | R58: =F58*Q58*Q13 -> 0
D60: Coursework Marking | F60: 10 | J60: =SUM(J61:J65) -> 0 | N60: =SUM(N61:N65) -> 0 | R60: =SUM(R61:R65) -> 0
D61: : Year 1 | F61: =+'Activity costing'!$C$6 -> 50 | J61: =+F61*I61*I9 -> 0 | N61: =+F61*M61*M9 -> 0 | R61: =+F61*Q61*Q9 -> 0
D62: : Year 2 | F62: =+'Activity costing'!$C$6 -> 50 | J62: =+F62*I62*I10 -> 0 | N62: =+F62*M62*M10 -> 0 | R62: =+F62*Q62*Q10 -> 0
D63: : Year 3 | F63: =+'Activity costing'!$C$6 -> 50 | J63: =+F63*I63*I11 -> 0 | N63: =+F63*M63*M11 -> 0 | R63: =+F63*Q63*Q11 -> 0
D64: : Year 2 (top-up) | F64: =+'Activity costing'!$C$6 -> 50 | J64: =+F64*I64*I12 -> 0 | N64: =+F64*M64*M12 -> 0 | R64: =+F64*Q64*Q12 -> 0
D65: : Year 3 (top-up) | F65: =+'Activity costing'!$C$6 -> 50 | J65: =+F65*I65*I13 -> 0 | N65: =+F65*M65*M13 -> 0 | R65: =+F65*Q65*Q13 -> 0
D67: Dissertation Marking | F67: =+'Activity costing'!$C$7 -> 160 | J67: =SUM(J68:J69) -> 0 | N67: =SUM(N68:N69) -> 0 | R67: =SUM(R68:R69) -> 0
D68: : Year 3 | F68: =+'Activity costing'!$C$7 -> 160 | J68: =+F68*I68*I11 -> 0 | N68: =+F68*M68*M11 -> 0 | R68: =+F68*Q68*Q11 -> 0
D69: : Year 3 (top-up) | F69: =+'Activity costing'!$C$7 -> 160 | J69: =+F69*I69*I13 -> 0 | N69: =+F69*M69*M13 -> 0 | R69: =+F69*Q69*Q13 -> 0
D71: Examination Moderation | F71: =+'Activity costing'!$E$5 -> 27 | J71: =SUM(J72:J76) -> 0 | N71: =SUM(N72:N76) -> 0 | R71: =SUM(R72:R76) -> 0 | U71: Cost here is: cost of time for one moderation x number of exams x number of students (<100 students =10, >100 = 10% of student number)
D72: : Year 1 | F72: =+'Activity costing'!$E$5 -> 27 | J72: =F72*I72*IF($I$9<100,10,$I$9*0.1) -> 0 | N72: =F72*M72*IF($M$9<100,10,$M$9*0.1) -> 0 | R72: =F72*Q72*IF($Q$9<100,10,$Q$9*0.1) -> 0
D73: : Year 2 | F73: =+'Activity costing'!$E$5 -> 27 | J73: =F73*I73*IF($I$10<100,10,$I$10*0.1) -> 0 | N73: =F73*M73*IF($M$10<100,10,$M$10*0.1) -> 0 | R73: =F73*Q73*IF($Q$10<100,10,$Q$10*0.1) -> 0
D74: : Year 3 | F74: =+'Activity costing'!$E$5 -> 27 | J74: =F74*I74*IF($I$11<100,10,$I$11*0.1) -> 0 | N74: =F74*M74*IF($M$11<100,10,$M$11*0.1) -> 0 | R74: =F74*Q74*IF($Q$11<100,10,$Q$11*0.1) -> 0
D75: : Year 2 (top-up) | F75: =+'Activity costing'!$E$5 -> 27 | J75: =F75*I75*IF($I$12<100,10,$I$12*0.1) -> 0 | N75: =F75*M75*IF($M$12<100,10,$M$12*0.1) -> 0 | R75: =F75*Q75*IF($Q$12<100,10,$Q$12*0.1) -> 0
D76: : Year 3 (top-up) | F76: =+'Activity costing'!$E$5 -> 27 | J76: =F76*I76*IF($I$13<100,10,$I$13*0.1) -> 0 | N76: =F76*M76*IF($M$13<100,10,$M$13*0.1) -> 0 | R76: =F76*Q76*IF($Q$13<100,10,$Q$13*0.1) -> 0
D78: Coursework Moderation | F78: =+'Activity costing'!$E$6 -> 27 | J78: =SUM(J79:J83) -> 0 | N78: =SUM(N79:N83) -> 0 | R78: =SUM(R79:R83) -> 0 | U78: Cost here is: cost of time for one moderation x number of courseworks x number of students (<100 students =10, >100 = 10% of student number)
D79: : Year 1 | F79: =+'Activity costing'!$E$6 -> 27 | J79: =F79*I79*IF($I$9<100,10,$I$9*0.1) -> 0 | N79: =F79*M79*IF($M$9<100,10,$M$9*0.1) -> 0 | R79: =F79*Q79*IF($Q$9<100,10,$Q$9*0.1) -> 0
D80: : Year 2 | F80: =+'Activity costing'!$E$6 -> 27 | J80: =F80*I80*IF($I$10<100,10,$I$10*0.1) -> 0 | N80: =F80*M80*IF($M$10<100,10,$M$10*0.1) -> 0 | R80: =F80*Q80*IF($Q$10<100,10,$Q$10*0.1) -> 0
D81: : Year 3 | F81: =+'Activity costing'!$E$6 -> 27 | J81: =F81*I81*IF($I$11<100,10,$I$11*0.1) -> 0 | N81: =F81*M81*IF($M$11<100,10,$M$11*0.1) -> 0 | R81: =F81*Q81*IF($Q$11<100,10,$Q$11*0.1) -> 0
D82: : Year 2 (top-up) | F82: =+'Activity costing'!$E$6 -> 27 | J82: =F82*I82*IF($I$12<100,10,$I$12*0.1) -> 0 | N82: =F82*M82*IF($M$12<100,10,$M$12*0.1) -> 0 | R82: =F82*Q82*IF($Q$12<100,10,$Q$12*0.1) -> 0
D83: : Year 3 (top-up) | F83: =+'Activity costing'!$E$6 -> 27 | J83: =F83*I83*IF($I$13<100,10,$I$13*0.1) -> 0 | N83: =F83*M83*IF($M$13<100,10,$M$13*0.1) -> 0 | R83: =F83*Q83*IF($Q$13<100,10,$Q$13*0.1) -> 0
D85: Dissertation Moderation | F85: =+'Activity costing'!$E$7 -> 65 | J85: =SUM(J86:J87) -> 0 | N85: =IF(M85>0,($F85*M85),0) -> 0 | R85: =IF(Q85>0,($F85*Q85),0) -> 0 | U85: Cost here is: cost of time for one moderation x number of dissertations x number of students (<100 students =10, >100 = 10% of student number)
D86: : Year 3 | F86: =+'Activity costing'!$E$7 -> 65 | J86: =F86*I86*IF($I$11<100,10,$I$11*0.1) -> 0 | N86: =F86*M86*IF($M$11<100,10,$M$11*0.1) -> 0 | R86: =F86*Q86*IF($Q$11<100,10,$Q$11*0.1) -> 0
D87: : Year 3 (top-up) | F87: =+'Activity costing'!$E$7 -> 65 | J87: =F87*I87*IF($I$13<100,10,$I$13*0.1) -> 0 | N87: =F87*M87*IF($M$13<100,10,$M$13*0.1) -> 0 | R87: =F87*Q87*IF($Q$11<100,10,$Q$11*0.1) -> 0
D89: Total Marking and Moderation Costs | J89: =+J53+J60+J67+J71+J78+J85 -> 0 | N89: =+N53+N60+N67+N71+N78+N85 -> 0 | R89: =+R53+R60+R67+R71+R78+R85 -> 0
B92: Other Quality Assurance Costs:- | J92: £ | N92: £ | R92: £
D93: External Examiner Fee | J93: =+'Activity costing'!C36 -> 400 | N93: =+J93 -> 400 | R93: =+'Activity costing'!C36 -> 400
D94: Reapproval Cost ( Programme Review) | J94: =+'Activity costing'!C18/3 -> 2781.951918 | N94: =+'Activity costing'!C18/3 -> 2781.951918 | R94: =+'Activity costing'!C18/3 -> 2781.951918
D96: Note: cost split equally across 3 years | J96: =SUM(J93:J95) -> 3181.951918 | N96: =SUM(N93:N95) -> 3181.951918 | R96: =SUM(R93:R95) -> 3181.951918
B99: Staff Travel & Subsistence:- | F99: Cost Per trip | I99: No. Of Trips | J99: £ | M99: No. Of Trips | N99: £ | Q99: No. Of Trips | R99: £
D100: Travel | E100: Cost per flight | F100: =IF(Summary!$I$13="Europe",'Activity costing'!$B$68,'Activity costing'!B65) -> 1000 | J100: =IF(I100>0,($F100*I100),0) -> 0 | N100: =IF(M100>0,($F100*M100),0)*(1+'Activity costing'!$D$40) -> 0 | R100: =IF(Q100>0,($F100*Q100),0)*(1+'Activity costing'!$D$41) -> 0 | U100: 2% Annual Inflationary Rate
D101: Accommodation | E101: Cost per night | F101: 150 | J101: =IF(I101>0,($F101*I101),0) -> 0 | N101: =IF(M101>0,($F101*M101),0)*(1+'Activity costing'!$D$40) -> 0 | R101: =IF(Q101>0,($F101*Q101),0)*(1+'Activity costing'!$D$41) -> 0 | U101: 2% Annual Inflationary Rate
D102: Living Expenses | E102: Cost per day | F102: 50 | J102: =IF(I102>0,($F102*I102),0) -> 0 | N102: =IF(M102>0,($F102*M102),0)*(1+'Activity costing'!$D$40) -> 0 | R102: =IF(Q102>0,($F102*Q102),0)*(1+'Activity costing'!$D$41) -> 0 | U102: 2% Annual Inflationary Rate
D104: http://www.gre.ac.uk/offices/finance/regs/Financial-Regulations-1-April-2011-Approved-by-Court-on-28-March-2011-final-revised-Oct-11-DH-Revi-Feb-12-1.pdf | J104: =SUM(J100:J103) -> 0 | N104: =SUM(N100:N103) -> 0 | R104: =SUM(R100:R103) -> 0
D105: Please see the web page above claims for guidance note of allowable business expenses incurred by staff
B108: Estate Costs:- | I108: FTE | J108: £ | M108: FTE | N108: £ | Q108: FTE | R108: £
D110: xxx Principal Lecturer | E110: @ TRAC costs | F110: 7713 | I110: =I35 -> 0.05 | J110: =$F110*I110 -> 385.65 | M110: =M35 -> 0.05 | N110: =$F110*M110*(1+'Activity costing'!$B$44) -> 393.363 | Q110: =Q35 -> 0.05 | R110: =$F110*Q110*(1+'Activity costing'!$B$44)*(1+'Activity costing'!$B$44) -> 401.23026 | U110: 2% Annual Pay Award
D111: xxx Senior Lecturer | F111: 7713 | I111: =I37 -> 0.1 | J111: =$F111*I111 -> 771.3 | M111: =M37 -> 0.1 | N111: =$F111*M111*(1+'Activity costing'!$B$44) -> 786.726 | Q111: =Q37 -> 0.1 | R111: =$F111*Q111*(1+'Activity costing'!$B$44)*(1+'Activity costing'!$B$44) -> 802.46052 | U111: 2% Annual Pay Award
D112: xxx Administration (Intl Collab) | F112: 7713 | I112: =I39 -> 0.1 | J112: =$F112*I112 -> 771.3 | M112: =M39 -> 0.1 | N112: =$F112*M112*(1+'Activity costing'!$B$44) -> 786.726 | Q112: =Q39 -> 0.1 | R112: =$F112*Q112*(1+'Activity costing'!$B$44)*(1+'Activity costing'!$B$44) -> 802.46052 | U112: 2% Annual Pay Award
D114: Total | J114: =SUM(J108:J113) -> 1928.25 | N114: =SUM(N108:N113) -> 1966.815 | R114: =SUM(R108:R113) -> 2006.1513
B117: Indirect TRAC Costs :- | I117: FTE | J117: £ | N117: £ | R117: £
D118: Indirect TRAC Costs | E118: @ TRAC costs | F118: 32826 | I118: =SUM(I110:I112) -> 0.25 | J118: =+$F$118*$I$118 -> 8206.5 | N118: =+J118*(1+'Activity costing'!D40) -> 8370.63 | R118: =+J118*(1+'Activity costing'!D41) -> 8538.0426 | U118: 2% Annual Inflationary Rate
J120: =SUM(J118:J118) -> 8206.5 | N120: =SUM(N118:N118) -> 8370.63 | R120: =SUM(R118:R118) -> 8538.0426
B123: * Unit: exam paper, an assignment, Dissertation
B124: * Item: flight, night, etc
B125: This FTE has been set by APC
B126: Marketing is Events has been excluded from this version of the Business plan as it is part of the memorandum of agreement that marketing cost would be entirely covered by the partners

Sheet Activity costing (hidden)
A1: Activity Costs
A2: Variable costs: Marking & Moderation
A3: Unit | B3: Activity | C3: Activity Costs | D3: Activity | E3: Activity Costs
A4: Marking | D4: Moderation of pieces of work
A5: Exam Paper | B5: 1 hour (per paper) | C5: =ROUND(($E$30/7)/10,0)*10 -> 50 | D5: 30 mins per paper | E5: =ROUND(($E$30/7)/60*30,0) -> 27
A6: Piece of Coursework | B6: 1 hour (per piece) | C6: =ROUND(($E$30/7)/10,0)*10 -> 50 | D6: 30 mins per piece | E6: =ROUND(($E$30/7)/60*30,0) -> 27
A7: Dissertation | B7: 3 hours | C7: =ROUND($E$30/7*3/10,0)*10 -> 160 | D7: 1.2 hours | E7: =ROUND(($E$30/7)*12/10,0) -> 65
A8: Setting a paper | D8: Approving someone else's
A9: Exam Paper | B9: 1 ½ days (per paper) | C9: =ROUND($E$30*1.5/10,0)*10 -> 570 | D9: 15 minutes | E9: =ROUND(($E$30/7)/60*15/10,0)*10 -> 10
A10: Piece of Coursework | B10: 2-3 hours | C10: =ROUND($E$30/7*2/10,0)*10 -> 110 | D10: 15 minutes | E10: =ROUND(($E$30/7)/60*15/10,0)*10 -> 10
A14: Approval Costs (virtual event)
A15: Programme Design/ Document Preparation | B15: PL 14 days | C15: =+E30*14 -> 5279.897196
A16: Approval Panel (4 UoG members) | B16: HoD, PL, SL, Snr admin | C16: =((E29*2)+(E30*1)+(E31*1)+(E32*2)) -> 2065.958557
A17: Approval Panel (External Member) | B17: Fee and expenses | C17: 1000
C18: =SUM(C15:C17) -> 8345.855753
A20: Approval Costs (onsite event)
A21: Programme Design/ Document Preparation | B21: PL 14 days | C21: =E30*14 -> 5279.897196
A22: Approval Panel (4 UoG members) | B22: HoD, PL, SL, Snr admin | C22: =((E29*5)+(E30*5)+(E31*5)+(E32*5)) -> 6884.288915
A23: Approval Panel (External Member) | B23: Fee and expenses | C23: 2000
A24: Plus travel and subsistence costs | C24: =2000*5 -> 10000
C25: =SUM(C21:C24) -> 24164.18611
A27: Approval Panel (4 UoG members)
A28: Job Title | B28: Grades | C28: Salary Cost Per Annum | D28: No of working days per yer | E28: Cost per day
A29: Head of Department | B29: AC5 Midpoint | C29: =+'Spine points for template'!B38 -> 96961 | D29: 219 | E29: =+C29/D29 -> 442.7442922
A30: Principal Lecturer | B30: AC4 Midpoint | C30: =+'Spine points for template'!B31 -> 80707 | D30: 214 | E30: =+C30/D30 -> 377.135514
A31: Senior Lecturer | B31: AC3 Midpoint | C31: =+'Spine points for template'!B22 -> 66473 | D31: 214 | E31: 310.6214953
A32: Senior admin staff | B32: SG7 Midpoint | C32: =+'Spine points for template'!B81 -> 53213 | D32: 216 | E32: 246.3564815
A35: Reapproval Costs | B35: split over 3 years | C35: =+C18 -> 8345.855753
A36: External Examiners fee | C36: 400
A38: Annual Inflationary Rate | D38: 0.02
C39: Year 1 | D39: 0
C40: Year 2 | D40: =$D$38 -> 0.02
C41: Year 3 | D41: =(D40*(1+$D$38))+$D$38 -> 0.0404
B43: 2012/13 | C43: 2013/14 | D43: 2014/15 | E43: 2015/16
A44: Annual Pay Award & London Weighting Increase | B44: 0.02 | C44: 0.02 | D44: 0.02 | E44: 0.02
A65: Asia | B65: 1000
A66: Africa | B66: 1000
A67: Middle East | B67: 1000
A68: Europe | B68: 500
A69: North /South America and the Caribbean | B69: 1000
A74: Setting Exam Paper | C74: =+C9 -> 570
A75: Setting Coursework | C75: =+C10 -> 110
A76: Approving Exam and Feedback when set by others | C76: =+E9 -> 10
A77: Approving Coursework and Feedback when set by others | C77: =+E10 -> 10

Sheet Spine points for template (hidden)
P6: Orgs
A7: AC1 - mid point | B7: 45952
A8: AC1 - SP23 | B8: 42342.01813 | O8: School of CMS | P8: 0222 | S8: Yes
A9: AC1 - SP24 | B9: 43485.77828 | O9: School of Design | P9: 0224 | S9: No
A10: AC1 - SP25 | B10: 44666.0604 | O10: School of HSS | P10: 0226
A11: AC1 - SP26 | B11: 45878.90602 | O11: School of Law | P11: 0228
A12: AC1 - SP27 | B12: 47129.35021 | O12: Education | P12: 0321
A13: AC1 - SP28 | B13: 48418.59505 | O13: Business | P13: 0461
A14: AC1 - SP29 | B14: 49745.64137 | O14: School of Science | P14: 0541
A15: AC2 - mid point | B15: 54775 | O15: Engineering | P15: 0641
A16: AC2 - SP30 | B16: 51113.88963 | O16: Health and Social Care | P16: 0721
A17: AC2 - SP31 | B17: 52517.9967 | O17: Health - Psychology & Counselling | P17: 0722
A18: AC2 - SP32 | B18: 53969.60439 | O18: Please select from the dropdown menu
A19: AC2 - SP33 | B19: 55462.26389
A20: AC2 - SP34 | B20: 57001.12335
A21: AC2 - SP35 | B21: 58584.82613
A22: AC3 - mid point | B22: 66473
A23: AC3 - SP36 | B23: 60218.28348
A24: AC3 - SP37 | B24: 61898.50151
A25: AC3 - SP38 | B25: 63664.97582
A26: AC3 - SP39 | B26: 65413.65515
A27: AC3 - SP40 | B27: 67250.8501
A28: AC3 - SP41 | B28: 69143.25345
A29: AC3 - SP42 | B29: 71090.03691
A30: AC3 - SP43 | B30: 73098.88801
A31: AC4 - mid point | B31: 80707
A32: AC4 - SP44 | B32: 75165.16542
A33: AC4 - SP45 | B33: 77295.04834
A34: AC4 - SP46 | B34: 79487.66588
A35: AC4 - SP47 | B35: 81748.2289
A36: AC4 - SP48 | B36: 84074.6872
A37: AC4 - SP49 | B37: 86469.80219
A38: AC5 - mid point | B38: 96961
A39: AC5 - SP50 | B39: 88938.8878
A40: AC5 - SP51 | B40: 91483.17053
A41: AC5 - SP52 | B41: 94104.32179
A42: AC5 - SP53 | B42: 96800.81846
A43: AC5 - SP54 | B43: 99578.45635
A44: AC5 - SP55 | B44: 102437.2355
A45: AC5 - SP56 | B45: 105387.2985
A46: SG1 - mid point
A47: SG1 - SP1
A48: SG1 - SP2
A49: SG2 - mid point | B49: 28032
A50: SG2 - SP3 | B50: 27675.29
A51: SG2 - SP4 | B51: 28010.948
A52: SG2 - SP5 | B52: 28407.753
A53: SG3 - mid point | B53: 30230
A54: SG3 - SP6 | B54: 28812.364
A55: SG3 - SP7 | B55: 29224.781
A56: SG3 - SP8 | B56: 29645.004
A57: SG3 - SP9 | B57: 30109.461
A58: SG3 - SP10 | B58: 30648.075
A59: SG3 - SP11 | B59: 31258.244
A60: SG3 - SP12 | B60: 31919.152
A61: SG4 - mid point | B61: 34107
A62: SG4 - SP13 | B62: 32615.187
A63: SG4 - SP14 | B63: 33332.038
A64: SG4 - SP15 | B64: 34071.006
A65: SG4 - SP16 | B65: 34842.499
A66: SG4 - SP17 | B66: 35675.139
A67: SG5 - mid point | B67: 38458
A68: SG5 - SP18 | B68: 36568.926
A69: SG5 - SP19 | B69: 37475.723
A70: SG5 - SP20 | B70: 38459.279
A71: SG5 - SP21 | B71: 39388.193
A72: SG5 - SP22 | B72: 40396.01261
A73: SG6 - mid point | B73: 44864
A74: SG6 - SP23 | B74: 41447.69997
A75: SG6 - SP24 | B75: 42530.06246
A76: SG6 - SP25 | B76: 43646.98641
A77: SG6 - SP26 | B77: 44794.72583
A78: SG6 - SP27 | B78: 45978.0455
A79: SG6 - SP28 | B79: 47198.08299
A80: SG6 - SP29 | B80: 48453.89275
A81: SG7 - mid point | B81: 53213
A82: SG7 - SP30 | B82: 49748.69271
A83: SG7 - SP31 | B83: 51077.42657
A84: SG7 - SP32 | B84: 52451.11117
A85: SG7 - SP33 | B85: 53863.64391
A86: SG7 - SP34 | B86: 55319.89658
A87: SG7 - SP35 | B87: 56818.58534
A88: SG8 - mid point | B88: 64283
A89: SG8 - SP36 | B89: 58364.35783
A90: SG8 - SP37 | B90: 59954.38086
A91: SG8 - SP38 | B91: 61626.02988
A92: SG8 - SP39 | B92: 63280.83917
A93: SG8 - SP40 | B93: 65019.4125
A94: SG8 - SP41 | B94: 66810.23063
A95: SG8 - SP42 | B95: 68652.50971
A96: SG8 - SP43 | B96: 70553.52461 | G96: 216
A97: SG9 - mid point | B97: 77753
A98: SG9 - SP44 | B98: 72508.88314 | F98: =B88/G96 -> 297.6064815 | G98: =F98*6 -> 1785.638889
A99: SG9 - SP45 | B99: 74524.4328 | F99: =B97/G96 -> 359.9675926 | G99: =F99*3 -> 1079.902778
A100: SG9 - SP46 | B100: 76599.34946 | G100: =G98+G99 -> 2865.541667
A101: SG9 - SP47 | B101: 78738.56425
A102: SG9 - SP48 | B102: 80940.13702 | F102: =B88/365 -> 176.1178082
A103: SG9 - SP49 | B103: 83206.68096 | F103: =F102/7*5 -> 125.7984344
A104: SG10 - mid point | B104: 93136
A105: SG10 - SP50 | B105: 85543.22473
A106: SG10 - SP51 | B106: 87950.92901
A107: SG10 - SP52 | B107: 90431.37546
A108: SG10 - SP53 | B108: 92983.12274
A109: SG10 - SP54 | B109: 95611.65555
A110: SG10 - SP55 | B110: 98316.97387
A111: SG10 - SP56 | B111: 101108.6759
A112: SMG1 | B112: 81494.35383
A113: SMG2 | B113: 84263.27823
A114: SMG3 | B114: 87026.30189
A115: SMG4 | B115: 89798.17666
A116: SMG5 | B116: 92568.57625
A117: SMG6 | B117: 95343.4014
A118: SMG7 | B118: 98113.80098
A119: SMG8 | B119: 100882.7254
A120: SMG9 | B120: 103653.125
A121: SMG10 | B121: 106423.5246
A122: SMG11 | B122: 109193.9241
A123: SMG12 | B123: 111967.2741
A124: SMG13 | B124: 114737.6737
A125: SMG14 | B125: 117503.6477
A126: SMG15 | B126: 120274.0473
A127: SMG16 | B127: 123047.3973
A128: SMG17 | B128: 125822.2224
A129: SMG18 | B129: 128591.1468
A130: SMG19 | B130: 131361.5464
A131: SMG20 | B131: 134130.4708
A132: SMG21 | B132: 136902.3456
A133: SMG22 | B133: 139675.6955
A134: SMG23 | B134: 142440.1944
A135: SMG24 | B135: 145213.5444
A136: SMG25 | B136: 147988.3695
A137: None | B137: 0

Sheet New data (hidden)
B2: The payroll data is the same we used for the bids template, ie. Data from Chris
B4: From new payscales | G4: The School and org code data is the most recent, the only one missing from the old list is Partnership Division as 0502 is no longer current, I do not know what the current arrangement is.
C5: No LW with OC | D5: With LW and OC
A6: AC1 - mid point | B6: 30550 | C6: 40780 | D6: 45952 | H6: Faculty of Liberal Arts & Sciences | I6: 0220
A7: AC1 SP23 | B7: 27924.01842 | C7: 37170.02053 | D7: 42342.01813 | H7: School of CMS | I7: 0222
A8: AC1 SP24 | B8: 28755.965 | C8: 38313.78068 | D8: 43485.77828 | H8: School of Design | I8: 0224
A9: AC1 SP25 | B9: 29614.47687 | C9: 39494.0628 | D9: 44666.0604 | H9: School of HSS | I9: 0226
A10: AC1 SP26 | B10: 30496.67473 | C10: 40706.90842 | D10: 45878.90602 | H10: School of Law | I10: 0228
A11: AC1 SP27 | B11: 31406.22098 | C11: 41957.35261 | D11: 47129.35021 | H11: Education | I11: 0321
A12: AC1 SP28 | B12: 32343.99 | C12: 43246.59745 | D12: 48418.59505 | H12: Business | I12: 0461
A13: AC1 SP29 | B13: 33309.255 | C13: 44573.64377 | D13: 49745.64137 | H13: School of Science | I13: 0541
A14: AC2 - mid point | B14: 36967 | C14: 49603 | D14: 54775 | H14: Engineering | I14: 0641
A15: AC2 SP30 | B15: 34304.4894 | C15: 45941.89203 | D15: 51113.88963 | H15: Health and Social Care | I15: 0721
A16: AC2 SP31 | B16: 35325.80674 | C16: 47345.9991 | D16: 52517.9967 | H16: Health - Psychology & Counselling | I16: 0722
A17: AC2 SP32 | B17: 36381.675 | C17: 48797.60679 | D17: 53969.60439
A18: AC2 SP33 | B18: 37467.40347 | C18: 50290.26629 | D18: 55462.26389
A19: AC2 SP34 | B19: 38586.7368 | C19: 51829.12575 | D19: 57001.12335
A20: AC2 SP35 | B20: 39738.68819 | C20: 53412.82853 | D20: 58584.82613
A21: AC3 - mid point | B21: 45476 | C21: 61301 | D21: 66473
A22: AC3 SP36 | B22: 40926.83 | C22: 55046.28588 | D22: 60218.28348
A23: AC3 SP37 | B23: 42148.98452 | C23: 56726.50391 | D23: 61898.50151
A24: AC3 SP38 | B24: 43433.88 | C24: 58492.97822 | D24: 63664.97582
A25: AC3 SP39 | B25: 44705.8318 | C25: 60241.65755 | D25: 65413.65515
A26: AC3 SP40 | B26: 46042.16795 | C26: 62078.8525 | D26: 67250.8501
A27: AC3 SP41 | B27: 47418.66152 | C27: 63971.25585 | D27: 69143.25345
A28: AC3 SP42 | B28: 48834.71 | C28: 65918.03931 | D28: 71090.03691
A29: AC3 SP43 | B29: 50295.90516 | C29: 67926.89041 | D29: 73098.88801
A30: AC4 - mid point | B30: 55830 | C30: 75535 | D30: 80707
A31: AC4 SP44 | B31: 51798.87097 | C31: 69993.16782 | D31: 75165.16542
A32: AC4 SP45 | B32: 53348.10208 | C32: 72123.05074 | D32: 77295.04834
A33: AC4 SP46 | B33: 54942.965 | C33: 74315.66828 | D33: 79487.66588
A34: AC4 SP47 | B34: 56587.25 | C34: 76576.2313 | D34: 81748.2289
A35: AC4 SP48 | B35: 58279.46581 | C35: 78902.6896 | D35: 84074.6872
A36: AC4 SP49 | B36: 60021.62103 | C36: 81297.80459 | D36: 86469.80219
A37: AC5 - mid point | B37: 67653 | C37: 91789 | D37: 96961
A38: AC5 SP50 | B38: 61817.58089 | C38: 83766.8902 | D38: 88938.8878
A39: AC5 SP51 | B39: 63668.23751 | C39: 86311.17293 | D39: 91483.17053
A40: AC5 SP52 | B40: 65574.80665 | C40: 88932.32419 | D40: 94104.32179
A41: AC5 SP53 | B41: 67536.18043 | C41: 91628.82086 | D41: 96800.81846
A42: AC5 SP54 | B42: 69556.57459 | C42: 94406.45875 | D42: 99578.45635
A43: AC5 SP55 | B43: 71635.98914 | C43: 97265.23787 | D43: 102437.2355
A44: AC5 SP56 | B44: 73781.80161 | C44: 100215.3009 | D44: 105387.2985
A45: SG1 - mid point | B45: 0
A46: SG1 SP1 | B46: 0
A47: SG1 SP2 | B47: 0
A48: SG2 - mid point | B48: 17612 | C48: 21693 | D48: 28032
A49: SG2 SP3 | B49: 17338 | C49: 21336.818 | D49: 27675.29
A50: SG2 SP4 | B50: 17596 | C50: 21672.476 | D50: 28010.948
A51: SG2 SP5 | B51: 17901 | C51: 22069.281 | D51: 28407.753
A52: SG3 - mid point | B52: 19302 | C52: 23892 | D52: 30230
A53: SG3 SP6 | B53: 18212 | C53: 22473.892 | D53: 28812.364
A54: SG3 SP7 | B54: 18529 | C54: 22886.309 | D54: 29224.781
A55: SG3 SP8 | B55: 18852 | C55: 23306.532 | D55: 29645.004
A56: SG3 SP9 | B56: 19209 | C56: 23770.989 | D56: 30109.461
A57: SG3 SP10 | B57: 19623 | C57: 24309.603 | D57: 30648.075
A58: SG3 SP11 | B58: 20092 | C58: 24919.772 | D58: 31258.244
A59: SG3 SP12 | B59: 20600 | C59: 25580.68 | D59: 31919.152
A60: SG4 - mid point | B60: 22282 | C60: 27769 | D60: 34107
A61: SG4 SP13 | B61: 21135 | C61: 26276.715 | D61: 32615.187
A62: SG4 SP14 | B62: 21686 | C62: 26993.566 | D62: 33332.038
A63: SG4 SP15 | B63: 22254 | C63: 27732.534 | D63: 34071.006
A64: SG4 SP16 | B64: 22847 | C64: 28504.027 | D64: 34842.499
A65: SG4 SP17 | B65: 23487 | C65: 29336.667 | D65: 35675.139
A66: SG5 - mid point | B66: 25626 | C66: 32119 | D66: 38458
A67: SG5 SP18 | B67: 24174 | C67: 30230.454 | D67: 36568.926
A68: SG5 SP19 | B68: 24871 | C68: 31137.251 | D68: 37475.723
A69: SG5 SP20 | B69: 25627 | C69: 32120.807 | D69: 38459.279
A70: SG5 SP21 | B70: 26341 | C70: 33049.721 | D70: 39388.193
A71: SG5 SP22 | B71: 27115.64997 | C71: 34057.54061 | D71: 40396.01261
A72: SG6 - mid point | B72: 30550 | C72: 38526 | D72: 44864
A73: SG6 SP23 | B73: 27924.01842 | C73: 35109.22797 | D73: 41447.69997
A74: SG6 SP24 | B74: 28755.965 | C74: 36191.59046 | D74: 42530.06246
A75: SG6 SP25 | B75: 29614.47687 | C75: 37308.51441 | D75: 43646.98641
A76: SG6 SP26 | B76: 30496.67473 | C76: 38456.25383 | D76: 44794.72583
A77: SG6 SP27 | B77: 31406.22098 | C77: 39639.5735 | D77: 45978.0455
A78: SG6 SP28 | B78: 32343.99 | C78: 40859.61099 | D78: 47198.08299
A79: SG6 SP29 | B79: 33309.255 | C79: 42115.42075 | D79: 48453.89275
A80: SG7 - mid point | B80: 36967 | C80: 46875 | D80: 53213
A81: SG7 SP30 | B81: 34304.4894 | C81: 43410.22071 | D81: 49748.69271
A82: SG7 SP31 | B82: 35325.80674 | C82: 44738.95457 | D82: 51077.42657
A83: SG7 SP32 | B83: 36381.675 | C83: 46112.63917 | D83: 52451.11117
A84: SG7 SP33 | B84: 37467.40347 | C84: 47525.17191 | D84: 53863.64391
A85: SG7 SP34 | B85: 38586.7368 | C85: 48981.42458 | D85: 55319.89658
A86: SG7 SP35 | B86: 39738.68819 | C86: 50480.11334 | D86: 56818.58534
A87: SG8 - mid point | B87: 45476 | C87: 57945 | D87: 64283
A88: SG8 SP36 | B88: 40926.83 | C88: 52025.88583 | D88: 58364.35783
A89: SG8 SP37 | B89: 42148.98452 | C89: 53615.90886 | D89: 59954.38086
A90: SG8 SP38 | B90: 43433.88 | C90: 55287.55788 | D90: 61626.02988
A91: SG8 SP39 | B91: 44705.8318 | C91: 56942.36717 | D91: 63280.83917
A92: SG8 SP40 | B92: 46042.16795 | C92: 58680.9405 | D92: 65019.4125
A93: SG8 SP41 | B93: 47418.66152 | C93: 60471.75863 | D93: 66810.23063
A94: SG8 SP42 | B94: 48834.71 | C94: 62314.03771 | D94: 68652.50971
A95: SG8 SP43 | B95: 50295.90516 | C95: 64215.05261 | D95: 70553.52461
A96: SG9 - mid point | B96: 55830 | C96: 71415 | D96: 77753
A97: SG9 SP44 | B97: 51798.87097 | C97: 66170.41114 | D97: 72508.88314
A98: SG9 SP45 | B98: 53348.10208 | C98: 68185.9608 | D98: 74524.4328
A99: SG9 SP46 | B99: 54942.965 | C99: 70260.87746 | D99: 76599.34946
A100: SG9 SP47 | B100: 56587.25 | C100: 72400.09225 | D100: 78738.56425
A101: SG9 SP48 | B101: 58279.46581 | C101: 74601.66502 | D101: 80940.13702
A102: SG9 SP49 | B102: 60021.62103 | C102: 76868.20896 | D102: 83206.68096
A103: SG10 - mid point | B103: 67653 | C103: 86796 | D103: 93136
A104: SG10 SP50 | B104: 61817.58089 | C104: 79204.75273 | D104: 85543.22473
A105: SG10 SP51 | B105: 63668.23751 | C105: 81612.45701 | D105: 87950.92901
A106: SG10 SP52 | B106: 65574.80665 | C106: 84092.90346 | D106: 90431.37546
A107: SG10 SP53 | B107: 67536.18043 | C107: 86644.65074 | D107: 92983.12274
A108: SG10 SP54 | B108: 69556.57459 | C108: 89273.18355 | D108: 95611.65555
A109: SG10 SP55 | B109: 71635.98914 | C109: 91978.50187 | D109: 98316.97387
A110: SG10 SP56 | B110: 73781.80161 | C110: 94770.2039 | D110: 101108.6759
A111: SMG1 | B111: 56131.75577 | C111: 75950.01783 | D111: 81494.35383
A112: SMG2 | B112: 58145.81192 | C112: 78718.94223 | D112: 84263.27823
A113: SMG3 | B113: 60155.576 | C113: 81481.96589 | D113: 87026.30189
A114: SMG4 | B114: 62171.77819 | C114: 84253.84066 | D114: 89798.17666
A115: SMG5 | B115: 64186.90737 | C115: 87024.24025 | D115: 92568.57625
A116: SMG6 | B116: 66205.2556 | C116: 89799.0654 | D116: 95343.4014
A117: SMG7 | B117: 68220.38477 | C117: 92569.46498 | D117: 98113.80098
A118: SMG8 | B118: 70234.44093 | C118: 95338.38939 | D118: 100882.7254
A119: SMG9 | B119: 72249.5701 | C119: 98108.78897 | D119: 103653.125
A120: SMG10 | B120: 74264.69927 | C120: 100879.1886 | D120: 106423.5246
A121: SMG11 | B121: 76279.82845 | C121: 103649.5881 | D121: 109193.9241
A122: SMG12 | B122: 78297.10366 | C122: 106422.9381 | D122: 111967.2741
A123: SMG13 | B123: 80312.23283 | C123: 109193.3377 | D123: 114737.6737
A124: SMG14 | B124: 82324.14295 | C124: 111959.3117 | D124: 117503.6477
A125: SMG15 | B125: 84339.27212 | C125: 114729.7113 | D125: 120274.0473
A126: SMG16 | B126: 86356.54733 | C126: 117503.0613 | D126: 123047.3973
A127: SMG17 | B127: 88374.89556 | C127: 120277.8864 | D127: 125822.2224
A128: SMG18 | B128: 90388.95172 | C128: 123046.8108 | D128: 128591.1468
A129: SMG19 | B129: 92404.08089 | C129: 125817.2104 | D129: 131361.5464
A130: SMG20 | B130: 94418.13705 | C130: 128586.1348 | D130: 134130.4708
A131: SMG21 | B131: 96434.33924 | C131: 131358.0096 | D131: 136902.3456
A132: SMG22 | B132: 98451.61445 | C132: 134131.3595 | D132: 139675.6955
A133: SMG23 | B133: 100462.4515 | C133: 136895.8584 | D133: 142440.1944
A134: SMG24 | B134: 102479.7268 | C134: 139669.2084 | D134: 145213.5444
A135: SMG25 | B135: 104498.075 | C135: 142444.0335 | D135: 147988.3695
A136: SMG26 | B136: 106508.9121 | C136: 145208.5323 | D136: 150752.8683
A137: SMG27 | B137: 108526.1873 | C137: 147981.8823 | D137: 153526.2183
